[Event "Titled Tuesday Blitz August 1 Early 2023"]
[White "Li, Hui"]
[Black "Nagare Kaivalya Sandip"]
[WhiteFideId "15400310"]
[BlackFideId "25957929"]
[WhiteElo "2376"]
[BlackElo "2678"]
[Result "0-1"]
[Round "2"]
[TimeControl "180+1"]
[Date "2023.08.01"]
[WhiteClock "0:00:01"]
[BlackClock "0:00:25"]
[Board "99"]

1. e4 {[%clk 0:03:00]}  c5 {[%clk 0:03:00]} 2. Nf3 {[%clk 0:03:00]}  d6 {[%clk 0:03:00]} 3. d4 {[%clk 0:03:01]}  cxd4 {[%clk 0:03:01]} 4. Nxd4 {[%clk 0:03:02]}  Nf6 {[%clk 0:03:01]} 5. Nc3 {[%clk 0:03:03]}  a6 {[%clk 0:03:02]} 6. Be2 {[%clk 0:03:03]}  e5 {[%clk 0:03:02]} 7. Nb3 {[%clk 0:03:04]}  Be7 {[%clk 0:03:00]} 8. O-O {[%clk 0:03:04]}  O-O {[%clk 0:03:01]} 9. Be3 {[%clk 0:03:05]}  Be6 {[%clk 0:03:00]} 10. Qd2 {[%clk 0:03:05]}  Nbd7 {[%clk 0:03:00]} 11. a4 {[%clk 0:03:05]}  Nb6 {[%clk 0:02:56]} 12. a5 {[%clk 0:03:00]}  Nc4 {[%clk 0:02:56]} 13. Bxc4 {[%clk 0:03:01]}  Bxc4 {[%clk 0:02:57]} 14. Rfd1 {[%clk 0:03:02]}  h6 {[%clk 0:02:57]} 15. Nc1 {[%clk 0:03:00]}  Rc8 {[%clk 0:02:53]} 16. Nd3 {[%clk 0:02:48]}  Qd7 {[%clk 0:02:26]} 17. Nxe5 {[%clk 0:02:28]}  dxe5 {[%clk 0:01:43]} 18. Qxd7 {[%clk 0:02:29]}  Nxd7 {[%clk 0:01:44]} 19. Rxd7 {[%clk 0:02:29]}  Bb4 {[%clk 0:01:44]} 20. Rxb7 {[%clk 0:02:25]}  Bxc3 {[%clk 0:01:43]} 21. bxc3 {[%clk 0:02:25]}  Bb5 {[%clk 0:01:40]} 22. Ra3 {[%clk 0:01:38]}  Rfd8 {[%clk 0:01:39]} 23. h3 {[%clk 0:01:24]}  h5 {[%clk 0:01:34]} 24. Kh2 {[%clk 0:01:16]}  f6 {[%clk 0:01:33]} 25. Rb3 {[%clk 0:01:04]}  h4 {[%clk 0:01:31]} 26. g3 {[%clk 0:00:53]}  hxg3+ {[%clk 0:01:30]} 27. Kxg3 {[%clk 0:00:52]}  Rc4 {[%clk 0:01:16]} 28. f3 {[%clk 0:00:44]}  Ra4 {[%clk 0:01:11]} 29. R3xb5 {[%clk 0:00:34]}  axb5 {[%clk 0:01:11]} 30. Rxb5 {[%clk 0:00:35]}  Ra2 {[%clk 0:00:55]} 31. Rb3 {[%clk 0:00:26]}  Rd1 {[%clk 0:00:42]} 32. Bb6 {[%clk 0:00:14]}  Rda1 {[%clk 0:00:39]} 33. c4 {[%clk 0:00:13]}  Rxc2 {[%clk 0:00:39]} 34. c5 {[%clk 0:00:13]}  Raa2 {[%clk 0:00:35]} 35. c6 {[%clk 0:00:05]}  Rxc6 {[%clk 0:00:33]} 36. Rd3 {[%clk 0:00:05]}  Rcc2 {[%clk 0:00:30]} 37. Kg4 {[%clk 0:00:03]}  Kf7 {[%clk 0:00:26]} 38. Rd7+ {[%clk 0:00:02]}  Kg6 {[%clk 0:00:26]} 39. h4 {[%clk 0:00:02]}  Rg2+ {[%clk 0:00:25]} 40. Kh3 {[%clk 0:00:02]}  Rh2+ {[%clk 0:00:25]} 41. Kg3 {[%clk 0:00:01]}  Rag2# {[%clk 0:00:25]} 0-1


[Site "https://www.chess.com"]

[Event "Titled Tuesday Blitz August 1 Early 2023"]
[White "kripri"]
[Black "Rastbod, Ali"]
[BlackFideId "12567477"]
[WhiteElo "2376"]
[BlackElo "2676"]
[Result "1/2-1/2"]
[Round "2"]
[TimeControl "180+1"]
[Date "2023.08.01"]
[WhiteClock "0:00:18"]
[BlackClock "0:00:15"]
[Board "100"]

1. e4 {[%clk 0:03:00]}  e6 {[%clk 0:02:58]} 2. d4 {[%clk 0:03:00]}  d5 {[%clk 0:02:59]} 3. Nd2 {[%clk 0:03:00]}  Nc6 {[%clk 0:02:58]} 4. c3 {[%clk 0:02:53]}  e5 {[%clk 0:02:57]} 5. dxe5 {[%clk 0:02:43]}  dxe4 {[%clk 0:02:55]} 6. Nxe4 {[%clk 0:02:40]}  Qxd1+ {[%clk 0:02:56]} 7. Kxd1 {[%clk 0:02:41]}  Nxe5 {[%clk 0:02:55]} 8. Bf4 {[%clk 0:02:35]}  Nf6 {[%clk 0:02:43]} 9. Nxf6+ {[%clk 0:02:24]}  gxf6 {[%clk 0:02:43]} 10. Be2 {[%clk 0:02:00]}  Bf5 {[%clk 0:02:39]} 11. Nf3 {[%clk 0:01:56]}  O-O-O+ {[%clk 0:02:34]} 12. Ke1 {[%clk 0:01:51]}  Nd3+ {[%clk 0:02:32]} 13. Bxd3 {[%clk 0:01:50]}  Bxd3 {[%clk 0:02:33]} 14. Rd1 {[%clk 0:01:43]}  Bc5 {[%clk 0:02:26]} 15. Be3 {[%clk 0:01:15]}  Rhe8 {[%clk 0:02:14]} 16. Nd4 {[%clk 0:01:14]}  Ba6 {[%clk 0:02:05]} 17. Kd2 {[%clk 0:01:02]}  Rg8 {[%clk 0:01:34]} 18. g3 {[%clk 0:01:01]}  b6 {[%clk 0:01:32]} 19. Kc1 {[%clk 0:00:54]}  Bc4 {[%clk 0:01:31]} 20. b3 {[%clk 0:00:49]}  Bd5 {[%clk 0:01:31]} 21. Rhe1 {[%clk 0:00:48]}  Ba3+ {[%clk 0:01:19]} 22. Kb1 {[%clk 0:00:42]}  a6 {[%clk 0:01:12]} 23. b4 {[%clk 0:00:32]}  Be4+ {[%clk 0:01:02]} 24. Ka1 {[%clk 0:00:31]}  c5 {[%clk 0:01:00]} 25. bxc5 {[%clk 0:00:30]}  Bxc5 {[%clk 0:00:59]} 26. Nb3 {[%clk 0:00:27]}  Rxd1+ {[%clk 0:00:57]} 27. Rxd1 {[%clk 0:00:26]}  Bxe3 {[%clk 0:00:58]} 28. fxe3 {[%clk 0:00:27]}  h5 {[%clk 0:00:58]} 29. Rd6 {[%clk 0:00:27]}  h4 {[%clk 0:00:37]} 30. gxh4 {[%clk 0:00:27]}  f5 {[%clk 0:00:33]} 31. Rxb6 {[%clk 0:00:26]}  Rg1+ {[%clk 0:00:33]} 32. Kb2 {[%clk 0:00:26]}  Rg2+ {[%clk 0:00:34]} 33. Ka3 {[%clk 0:00:26]}  Rxh2 {[%clk 0:00:35]} 34. Rxa6 {[%clk 0:00:25]}  Rxh4 {[%clk 0:00:35]} 35. Nc5 {[%clk 0:00:23]}  Rh3 {[%clk 0:00:35]} 36. Rf6 {[%clk 0:00:17]}  Rxe3 {[%clk 0:00:30]} 37. Rxf7 {[%clk 0:00:16]}  Rxc3+ {[%clk 0:00:29]} 38. Kb4 {[%clk 0:00:17]}  Rc1 {[%clk 0:00:29]} 39. Nxe4 {[%clk 0:00:16]}  fxe4 {[%clk 0:00:29]} 40. Re7 {[%clk 0:00:17]}  Re1 {[%clk 0:00:28]} 41. Kc4 {[%clk 0:00:16]}  Kd8 {[%clk 0:00:27]} 42. Re5 {[%clk 0:00:16]}  Rd1 {[%clk 0:00:15]} 43. Rxe4 {[%clk 0:00:15]}  Kc7 {[%clk 0:00:15]} 44. Re2 {[%clk 0:00:15]}  Kb6 {[%clk 0:00:15]} 45. Kb4 {[%clk 0:00:15]}  Rd4+ {[%clk 0:00:15]} 46. Kc3 {[%clk 0:00:15]}  Rh4 {[%clk 0:00:15]} 47. Rb2+ {[%clk 0:00:16]}  Ka5 {[%clk 0:00:15]} 48. Kb3 {[%clk 0:00:16]}  Rb4+ {[%clk 0:00:14]} 49. Kc3 {[%clk 0:00:16]}  Rh4 {[%clk 0:00:14]} 50. Rd2 {[%clk 0:00:17]}  Ka4 {[%clk 0:00:12]} 51. Rd4+ {[%clk 0:00:17]}  Rxd4 {[%clk 0:00:13]} 52. Kxd4 {[%clk 0:00:17]}  Ka3 {[%clk 0:00:14]} 53. Kd3 {[%clk 0:00:18]}  Kxa2 {[%clk 0:00:15]} 1/2-1/2


[Site "https://www.chess.com"]

[Event "Titled Tuesday Blitz August 1 Early 2023"]
[White "Li, Eric"]
[Black "Itgelt, Khuyagtsogt"]
[WhiteFideId "30939941"]
[BlackFideId "4902912"]
[WhiteElo "2367"]
[BlackElo "2673"]
[Result "1-0"]
[Round "2"]
[TimeControl "180+1"]
[Date "2023.08.01"]
[WhiteClock "0:00:17"]
[BlackClock "0:00:08"]
[Board "101"]

1. e4 {[%clk 0:03:00]}  e6 {[%clk 0:02:59]} 2. d4 {[%clk 0:02:58]}  d5 {[%clk 0:02:58]} 3. Nd2 {[%clk 0:02:58]}  c5 {[%clk 0:02:57]} 4. exd5 {[%clk 0:02:57]}  exd5 {[%clk 0:02:58]} 5. Ngf3 {[%clk 0:02:57]}  Nc6 {[%clk 0:02:57]} 6. Bb5 {[%clk 0:02:57]}  Qe7+ {[%clk 0:02:57]} 7. Qe2 {[%clk 0:02:56]}  Qxe2+ {[%clk 0:02:56]} 8. Bxe2 {[%clk 0:02:55]}  Bf5 {[%clk 0:02:56]} 9. c3 {[%clk 0:02:54]}  cxd4 {[%clk 0:02:55]} 10. Nxd4 {[%clk 0:02:54]}  Nxd4 {[%clk 0:02:56]} 11. cxd4 {[%clk 0:02:55]}  Nf6 {[%clk 0:02:51]} 12. O-O {[%clk 0:02:54]}  Bd6 {[%clk 0:02:43]} 13. Bb5+ {[%clk 0:02:52]}  Kd8 {[%clk 0:02:43]} 14. Nf3 {[%clk 0:02:51]}  a6 {[%clk 0:02:39]} 15. Ba4 {[%clk 0:02:50]}  Nd7 {[%clk 0:02:33]} 16. Bb3 {[%clk 0:02:46]}  Nb6 {[%clk 0:02:23]} 17. a4 {[%clk 0:02:40]}  f6 {[%clk 0:02:16]} 18. a5 {[%clk 0:02:37]}  Nc4 {[%clk 0:02:16]} 19. Nd2 {[%clk 0:02:28]}  Rc8 {[%clk 0:02:12]} 20. Rd1 {[%clk 0:02:23]}  Re8 {[%clk 0:02:08]} 21. Ra4 {[%clk 0:02:04]}  Bg4 {[%clk 0:01:45]} 22. f3 {[%clk 0:01:29]}  Ne3 {[%clk 0:01:40]} 23. Re1 {[%clk 0:01:24]}  Bd7 {[%clk 0:01:36]} 24. Ra1 {[%clk 0:01:19]}  Bxh2+ {[%clk 0:01:27]} 25. Kf2 {[%clk 0:01:13]}  Ng4+ {[%clk 0:01:22]} 26. fxg4 {[%clk 0:01:12]}  Bg3+ {[%clk 0:01:21]} 27. Kxg3 {[%clk 0:01:12]}  Rxe1 {[%clk 0:01:22]} 28. Bxd5 {[%clk 0:01:12]}  Rexc1 {[%clk 0:01:10]} 29. Rxc1 {[%clk 0:01:10]}  Rxc1 {[%clk 0:01:11]} 30. Bxb7 {[%clk 0:01:10]}  Bb5 {[%clk 0:01:10]} 31. Nb3 {[%clk 0:01:04]}  Rc7 {[%clk 0:00:59]} 32. Nc5 {[%clk 0:01:01]}  Re7 {[%clk 0:00:50]} 33. b4 {[%clk 0:00:49]}  Kc7 {[%clk 0:00:35]} 34. Bxa6 {[%clk 0:00:47]}  Bxa6 {[%clk 0:00:33]} 35. Nxa6+ {[%clk 0:00:48]}  Kc6 {[%clk 0:00:33]} 36. d5+ {[%clk 0:00:30]}  Kxd5 {[%clk 0:00:22]} 37. b5 {[%clk 0:00:29]}  Kc4 {[%clk 0:00:16]} 38. b6 {[%clk 0:00:28]}  Kb5 {[%clk 0:00:17]} 39. Nb8 {[%clk 0:00:20]}  Re3+ {[%clk 0:00:05]} 40. Kf4 {[%clk 0:00:19]}  Rb3 {[%clk 0:00:05]} 41. b7 {[%clk 0:00:16]}  Kxa5 {[%clk 0:00:03]} 42. Nc6+ {[%clk 0:00:16]}  Ka6 {[%clk 0:00:03]} 43. b8=Q {[%clk 0:00:17]}  Rxb8 {[%clk 0:00:04]} 44. Nxb8+ {[%clk 0:00:18]}  Kb7 {[%clk 0:00:04]} 45. Nd7 {[%clk 0:00:18]}  Kc6 {[%clk 0:00:04]} 46. Nf8 {[%clk 0:00:19]}  Kd6 {[%clk 0:00:01]} 47. Nxh7 {[%clk 0:00:19]}  Ke7 {[%clk 0:00:01]} 48. Kf5 {[%clk 0:00:18]}  Kf7 {[%clk 0:00:02]} 49. g5 {[%clk 0:00:18]}  g6+ {[%clk 0:00:02]} 50. Kf4 {[%clk 0:00:17]}  fxg5+ {[%clk 0:00:03]} 51. Nxg5+ {[%clk 0:00:17]}  Kg7 {[%clk 0:00:03]} 52. Ne4 {[%clk 0:00:18]}  Kh6 {[%clk 0:00:04]} 53. Ke5 {[%clk 0:00:18]}  Kh5 {[%clk 0:00:04]} 54. g3 {[%clk 0:00:18]}  Kg4 {[%clk 0:00:05]} 55. Kd4 {[%clk 0:00:16]}  Kf3 {[%clk 0:00:05]} 56. Ke5 {[%clk 0:00:15]}  Kg4 {[%clk 0:00:02]} 57. Kf6 {[%clk 0:00:15]}  Kf3 {[%clk 0:00:02]} 58. Kxg6 {[%clk 0:00:15]}  Kxe4 {[%clk 0:00:03]} 59. g4 {[%clk 0:00:16]}  Kf4 {[%clk 0:00:04]} 60. g5 {[%clk 0:00:15]}  Kg4 {[%clk 0:00:05]} 61. Kf6 {[%clk 0:00:15]}  Kh5 {[%clk 0:00:05]} 62. g6 {[%clk 0:00:16]}  Kh6 {[%clk 0:00:05]} 63. g7 {[%clk 0:00:16]}  Kh7 {[%clk 0:00:06]} 64. Kf7 {[%clk 0:00:17]}  Kh6 {[%clk 0:00:07]} 65. g8=Q {[%clk 0:00:17]}  Kh5 {[%clk 0:00:08]} 66. Qg3 {[%clk 0:00:17]} 1-0


[Site "https://www.chess.com"]

[Event "Titled Tuesday Blitz August 1 Early 2023"]
[White "Agibileg, Uurtsaikh"]
[Black "SicilianPanzer"]
[WhiteFideId "4901606"]
[WhiteElo "2665"]
[BlackElo "2316"]
[Result "1-0"]
[Round "2"]
[TimeControl "180+1"]
[Date "2023.08.01"]
[WhiteClock "0:00:16"]
[BlackClock "0:00:03"]
[Board "104"]

1. d4 {[%clk 0:03:00]}  Nf6 {[%clk 0:02:59]} 2. c4 {[%clk 0:03:00]}  e6 {[%clk 0:02:59]} 3. Nc3 {[%clk 0:02:59]}  Bb4 {[%clk 0:02:58]} 4. a3 {[%clk 0:02:57]}  Bxc3+ {[%clk 0:02:58]} 5. bxc3 {[%clk 0:02:58]}  Nc6 {[%clk 0:02:57]} 6. f3 {[%clk 0:02:56]}  b6 {[%clk 0:02:55]} 7. e4 {[%clk 0:02:56]}  Ba6 {[%clk 0:02:47]} 8. Bd3 {[%clk 0:02:55]}  Na5 {[%clk 0:02:45]} 9. Qe2 {[%clk 0:02:54]}  c5 {[%clk 0:02:44]} 10. Be3 {[%clk 0:02:44]}  d6 {[%clk 0:02:40]} 11. f4 {[%clk 0:02:36]}  Rc8 {[%clk 0:02:24]} 12. Rc1 {[%clk 0:02:35]}  h5 {[%clk 0:01:56]} 13. Nf3 {[%clk 0:02:30]}  Qd7 {[%clk 0:01:49]} 14. O-O {[%clk 0:02:29]}  Qa4 {[%clk 0:01:38]} 15. Nd2 {[%clk 0:02:29]}  Ng4 {[%clk 0:01:35]} 16. f5 {[%clk 0:02:14]}  e5 {[%clk 0:01:12]} 17. f6 {[%clk 0:02:10]}  g6 {[%clk 0:01:11]} 18. Bg5 {[%clk 0:02:04]}  exd4 {[%clk 0:00:54]} 19. cxd4 {[%clk 0:02:02]}  cxd4 {[%clk 0:00:53]} 20. e5 {[%clk 0:01:38]}  Nxe5 {[%clk 0:00:49]} 21. Ne4 {[%clk 0:01:29]}  Qd7 {[%clk 0:00:33]} 22. Bf4 {[%clk 0:01:20]}  Nac6 {[%clk 0:00:30]} 23. Qd2 {[%clk 0:00:45]}  Kd8 {[%clk 0:00:23]} 24. Nxd6 {[%clk 0:00:40]}  Qxd6 {[%clk 0:00:22]} 25. c5 {[%clk 0:00:40]}  bxc5 {[%clk 0:00:19]} 26. Bxa6 {[%clk 0:00:40]}  Rb8 {[%clk 0:00:18]} 27. Bc4 {[%clk 0:00:33]}  Nxc4 {[%clk 0:00:13]} 28. Rxc4 {[%clk 0:00:31]}  Qd5 {[%clk 0:00:12]} 29. Rfc1 {[%clk 0:00:22]}  Rb5 {[%clk 0:00:12]} 30. a4 {[%clk 0:00:22]}  Ra5 {[%clk 0:00:12]} 31. Qd3 {[%clk 0:00:18]}  Re8 {[%clk 0:00:11]} 32. Bd2 {[%clk 0:00:18]}  Ra6 {[%clk 0:00:06]} 33. Rxc5 {[%clk 0:00:18]}  Qd6 {[%clk 0:00:06]} 34. Qxa6 {[%clk 0:00:17]}  Re2 {[%clk 0:00:03]} 35. Qxe2 {[%clk 0:00:16]} 1-0


[Site "https://www.chess.com"]

[Event "Titled Tuesday Blitz August 1 Early 2023"]
[White "Antonio, Jorge Carlos"]
[Black "Poormosavi, Seyed Kian"]
[WhiteFideId "113190"]
[BlackFideId "12585807"]
[WhiteElo "2315"]
[BlackElo "2665"]
[Result "0-1"]
[Round "2"]
[TimeControl "180+1"]
[Date "2023.08.01"]
[WhiteClock "0:00:16"]
[BlackClock "0:00:47"]
[Board "105"]

1. d4 {[%clk 0:03:00]}  Nf6 {[%clk 0:02:59]} 2. Nf3 {[%clk 0:03:00]}  b6 {[%clk 0:02:56]} 3. g3 {[%clk 0:03:00]}  Bb7 {[%clk 0:02:56]} 4. Bg2 {[%clk 0:03:00]}  g6 {[%clk 0:02:55]} 5. O-O {[%clk 0:03:00]}  Bg7 {[%clk 0:02:55]} 6. c3 {[%clk 0:02:59]}  O-O {[%clk 0:02:56]} 7. Re1 {[%clk 0:02:59]}  c5 {[%clk 0:02:51]} 8. dxc5 {[%clk 0:02:58]}  bxc5 {[%clk 0:02:51]} 9. Bg5 {[%clk 0:02:55]}  d6 {[%clk 0:02:51]} 10. Nbd2 {[%clk 0:02:54]}  Nc6 {[%clk 0:02:45]} 11. Nc4 {[%clk 0:02:47]}  Rb8 {[%clk 0:02:44]} 12. b3 {[%clk 0:02:46]}  Qc7 {[%clk 0:02:41]} 13. Bxf6 {[%clk 0:02:45]}  Bxf6 {[%clk 0:02:41]} 14. Rc1 {[%clk 0:02:45]}  Rfd8 {[%clk 0:02:35]} 15. e4 {[%clk 0:02:42]}  e6 {[%clk 0:02:34]} 16. Ne3 {[%clk 0:02:37]}  a5 {[%clk 0:02:34]} 17. c4 {[%clk 0:02:37]}  a4 {[%clk 0:02:32]} 18. Qc2 {[%clk 0:02:34]}  axb3 {[%clk 0:02:30]} 19. axb3 {[%clk 0:02:34]}  Nd4 {[%clk 0:02:28]} 20. Nxd4 {[%clk 0:02:31]}  Bxd4 {[%clk 0:02:29]} 21. h4 {[%clk 0:02:27]}  h5 {[%clk 0:02:28]} 22. Qd3 {[%clk 0:02:25]}  Bc6 {[%clk 0:02:28]} 23. Nc2 {[%clk 0:02:24]}  Bf6 {[%clk 0:02:24]} 24. Rb1 {[%clk 0:02:22]}  Qa5 {[%clk 0:02:18]} 25. Red1 {[%clk 0:02:21]}  Be5 {[%clk 0:02:12]} 26. f4 {[%clk 0:02:20]}  Bg7 {[%clk 0:02:11]} 27. Kh2 {[%clk 0:02:20]}  Rd7 {[%clk 0:02:10]} 28. f5 {[%clk 0:02:19]}  Be5 {[%clk 0:02:04]} 29. fxg6 {[%clk 0:02:16]}  fxg6 {[%clk 0:02:04]} 30. Rf1 {[%clk 0:02:10]}  Re7 {[%clk 0:02:03]} 31. Qe2 {[%clk 0:02:00]}  Qa2 {[%clk 0:01:56]} 32. Nd4 {[%clk 0:01:37]}  Qxe2 {[%clk 0:01:49]} 33. Nxe2 {[%clk 0:01:36]}  Ra7 {[%clk 0:01:48]} 34. Nf4 {[%clk 0:01:34]}  Ra2 {[%clk 0:01:46]} 35. Kh3 {[%clk 0:01:24]}  Rxg2 {[%clk 0:01:24]} 36. Nxg2 {[%clk 0:01:13]}  Bxe4 {[%clk 0:01:24]} 37. Rbe1 {[%clk 0:01:11]}  Bf5+ {[%clk 0:01:16]} 38. Kh2 {[%clk 0:01:07]}  Rxb3 {[%clk 0:01:16]} 39. Nf4 {[%clk 0:01:01]}  Rc3 {[%clk 0:01:12]} 40. Rc1 {[%clk 0:00:56]}  Rb3 {[%clk 0:01:07]} 41. Ne2 {[%clk 0:00:46]}  Rb2 {[%clk 0:01:02]} 42. Rf2 {[%clk 0:00:40]}  Bg4 {[%clk 0:00:55]} 43. Re1 {[%clk 0:00:26]}  Bd4 {[%clk 0:00:50]} 44. Rg2 {[%clk 0:00:16]}  Bf3 {[%clk 0:00:48]} 45. Nxd4 {[%clk 0:00:16]}  Rxg2+ {[%clk 0:00:47]} 46. Kh3 {[%clk 0:00:17]}  cxd4 {[%clk 0:00:47]} 47. Rxe6 {[%clk 0:00:16]}  Rg1 {[%clk 0:00:47]} 48. Rxg6+ {[%clk 0:00:15]}  Kf7 {[%clk 0:00:47]} 49. Rxd6 {[%clk 0:00:16]}  Rh1# {[%clk 0:00:47]} 0-1


[Site "https://www.chess.com"]

[Event "Titled Tuesday Blitz August 1 Early 2023"]
[White "Ferro, Mario"]
[Black "Arias, Juan Cruz"]
[WhiteFideId "810290"]
[BlackFideId "118540"]
[WhiteElo "2271"]
[BlackElo "2656"]
[Result "0-1"]
[Round "2"]
[TimeControl "180+1"]
[Date "2023.08.01"]
[WhiteClock "0:00:18"]
[BlackClock "0:01:29"]
[Board "108"]

1. Nf3 {[%clk 0:03:00]}  d5 {[%clk 0:02:57]} 2. g3 {[%clk 0:03:00]}  Nd7 {[%clk 0:02:56]} 3. d4 {[%clk 0:02:59]}  Nb6 {[%clk 0:02:56]} 4. a4 {[%clk 0:02:53]}  a5 {[%clk 0:02:55]} 5. Bg2 {[%clk 0:02:52]}  Bf5 {[%clk 0:02:55]} 6. O-O {[%clk 0:02:52]}  Nf6 {[%clk 0:02:54]} 7. b3 {[%clk 0:02:52]}  e6 {[%clk 0:02:52]} 8. Ne5 {[%clk 0:02:49]}  Be7 {[%clk 0:02:49]} 9. c4 {[%clk 0:02:49]}  c6 {[%clk 0:02:46]} 10. Ba3 {[%clk 0:02:20]}  O-O {[%clk 0:02:42]} 11. Bxe7 {[%clk 0:02:19]}  Qxe7 {[%clk 0:02:43]} 12. c5 {[%clk 0:02:20]}  Nbd7 {[%clk 0:02:41]} 13. Nxd7 {[%clk 0:02:21]}  Nxd7 {[%clk 0:02:41]} 14. Nd2 {[%clk 0:02:21]}  e5 {[%clk 0:02:39]} 15. e3 {[%clk 0:02:15]}  Rfe8 {[%clk 0:02:33]} 16. b4 {[%clk 0:02:07]}  exd4 {[%clk 0:02:11]} 17. exd4 {[%clk 0:02:06]}  Bd3 {[%clk 0:02:10]} 18. Re1 {[%clk 0:01:47]}  Qxe1+ {[%clk 0:02:08]} 19. Qxe1 {[%clk 0:01:48]}  Rxe1+ {[%clk 0:02:08]} 20. Rxe1 {[%clk 0:01:49]}  axb4 {[%clk 0:02:08]} 21. Re7 {[%clk 0:01:50]}  Bf5 {[%clk 0:02:08]} 22. Re3 {[%clk 0:01:09]}  Kf8 {[%clk 0:02:03]} 23. Rb3 {[%clk 0:01:08]}  Rxa4 {[%clk 0:02:03]} 24. Bf1 {[%clk 0:00:58]}  b6 {[%clk 0:01:47]} 25. cxb6 {[%clk 0:00:57]}  Nxb6 {[%clk 0:01:48]} 26. f3 {[%clk 0:00:57]}  Ke7 {[%clk 0:01:48]} 27. Kf2 {[%clk 0:00:57]}  Kd6 {[%clk 0:01:48]} 28. Rb2 {[%clk 0:00:55]}  Nd7 {[%clk 0:01:37]} 29. Nb3 {[%clk 0:00:52]}  Ra3 {[%clk 0:01:32]} 30. g4 {[%clk 0:00:50]}  Bc2 {[%clk 0:01:29]} 31. Nc5 {[%clk 0:00:18]}  b3 {[%clk 0:01:29]} 0-1


[Site "https://www.chess.com"]

[Event "Titled Tuesday Blitz August 1 Early 2023"]
[White "Lewicki, Miroslaw"]
[Black "Andreassen, Lars"]
[WhiteFideId "1113380"]
[BlackFideId "1504878"]
[WhiteElo "2647"]
[BlackElo "2264"]
[Result "1-0"]
[Round "2"]
[TimeControl "180+1"]
[Date "2023.08.01"]
[WhiteClock "0:00:16"]
[BlackClock "0:00:00"]
[Board "109"]

1. g3 {[%clk 0:02:53]}  g6 {[%clk 0:02:58]} 2. Bg2 {[%clk 0:02:54]}  Bg7 {[%clk 0:02:59]} 3. Nf3 {[%clk 0:02:55]}  d5 {[%clk 0:02:58]} 4. O-O {[%clk 0:02:55]}  Nf6 {[%clk 0:02:58]} 5. d4 {[%clk 0:02:55]}  O-O {[%clk 0:02:58]} 6. b3 {[%clk 0:02:53]}  Bf5 {[%clk 0:02:57]} 7. Bb2 {[%clk 0:02:53]}  Nbd7 {[%clk 0:02:53]} 8. e3 {[%clk 0:02:49]}  c6 {[%clk 0:02:42]} 9. Nbd2 {[%clk 0:02:49]}  Ne4 {[%clk 0:02:41]} 10. c4 {[%clk 0:02:47]}  Nxd2 {[%clk 0:02:41]} 11. Qxd2 {[%clk 0:02:47]}  Be4 {[%clk 0:02:41]} 12. Rfd1 {[%clk 0:02:45]}  e6 {[%clk 0:02:37]} 13. h4 {[%clk 0:02:32]}  a5 {[%clk 0:02:36]} 14. h5 {[%clk 0:02:28]}  gxh5 {[%clk 0:02:34]} 15. Qe2 {[%clk 0:02:15]}  Qf6 {[%clk 0:02:25]} 16. Nh4 {[%clk 0:02:08]}  Bxg2 {[%clk 0:02:25]} 17. Nxg2 {[%clk 0:02:08]}  a4 {[%clk 0:02:23]} 18. Qxh5 {[%clk 0:02:06]}  axb3 {[%clk 0:02:12]} 19. axb3 {[%clk 0:02:06]}  Qg6 {[%clk 0:02:12]} 20. Qh2 {[%clk 0:01:59]}  Qc2 {[%clk 0:02:12]} 21. Rab1 {[%clk 0:01:36]}  Ra2 {[%clk 0:02:07]} 22. Rdc1 {[%clk 0:01:15]}  Qxb3 {[%clk 0:02:03]} 23. Bc3 {[%clk 0:01:14]}  Qxc4 {[%clk 0:01:53]} 24. Bb4 {[%clk 0:01:14]}  Rc2 {[%clk 0:01:53]} 25. Rd1 {[%clk 0:00:49]}  Ra8 {[%clk 0:01:47]} 26. Ne1 {[%clk 0:00:48]}  Re2 {[%clk 0:01:42]} 27. Rdc1 {[%clk 0:00:39]}  Qa2 {[%clk 0:01:03]} 28. Bc3 {[%clk 0:00:36]}  Qc4 {[%clk 0:00:44]} 29. Rxb7 {[%clk 0:00:24]}  Rxe1+ {[%clk 0:00:44]} 30. Rxe1 {[%clk 0:00:20]}  Qxc3 {[%clk 0:00:44]} 31. Reb1 {[%clk 0:00:21]}  Qa5 {[%clk 0:00:28]} 32. Rxd7 {[%clk 0:00:20]}  Qa2 {[%clk 0:00:26]} 33. Rdb7 {[%clk 0:00:19]}  Qc2 {[%clk 0:00:23]} 34. Qh5 {[%clk 0:00:19]}  Qg6 {[%clk 0:00:16]} 35. Qxg6 {[%clk 0:00:18]}  hxg6 {[%clk 0:00:16]} 36. Rc7 {[%clk 0:00:18]}  Rf8 {[%clk 0:00:06]} 37. Rxc6 {[%clk 0:00:17]}  Bf6 {[%clk 0:00:07]} 38. Rb7 {[%clk 0:00:16]}  Bd8 {[%clk 0:00:00]} 39. Rc8 {[%clk 0:00:16]} 1-0


[Site "https://www.chess.com"]

[Event "Titled Tuesday Blitz August 1 Early 2023"]
[White "Timerkhanov, Alexander"]
[Black "Quirke, Jeffrey"]
[WhiteFideId "24177938"]
[BlackFideId "2013029"]
[WhiteElo "2645"]
[BlackElo "2247"]
[Result "1-0"]
[Round "2"]
[TimeControl "180+1"]
[Date "2023.08.01"]
[WhiteClock "0:00:59"]
[BlackClock "0:00:00"]
[Board "111"]

1. d4 {[%clk 0:03:00]}  e6 {[%clk 0:02:37]} 2. Bf4 {[%clk 0:02:59]}  b6 {[%clk 0:02:34]} 3. e3 {[%clk 0:02:59]}  Bb7 {[%clk 0:02:34]} 4. Nf3 {[%clk 0:03:00]}  Nf6 {[%clk 0:02:32]} 5. Bd3 {[%clk 0:03:00]}  Be7 {[%clk 0:02:32]} 6. h3 {[%clk 0:03:00]}  c5 {[%clk 0:02:32]} 7. c3 {[%clk 0:03:00]}  Nc6 {[%clk 0:02:32]} 8. O-O {[%clk 0:02:59]}  d6 {[%clk 0:02:30]} 9. Nbd2 {[%clk 0:02:59]}  O-O {[%clk 0:02:28]} 10. Qe2 {[%clk 0:02:58]}  Nd5 {[%clk 0:02:26]} 11. Bh2 {[%clk 0:02:57]}  f5 {[%clk 0:02:25]} 12. e4 {[%clk 0:02:56]}  fxe4 {[%clk 0:02:23]} 13. Qxe4 {[%clk 0:02:54]}  Nf6 {[%clk 0:02:17]} 14. Qxe6+ {[%clk 0:02:54]}  Kh8 {[%clk 0:02:18]} 15. Ng5 {[%clk 0:02:47]}  Qe8 {[%clk 0:02:15]} 16. Rae1 {[%clk 0:02:41]}  h6 {[%clk 0:02:03]} 17. Nge4 {[%clk 0:02:38]}  Ng8 {[%clk 0:01:22]} 18. Bxd6 {[%clk 0:02:30]}  Bxd6 {[%clk 0:01:15]} 19. Nxd6 {[%clk 0:02:30]}  Qxe6 {[%clk 0:01:14]} 20. Rxe6 {[%clk 0:02:30]}  Nd8 {[%clk 0:01:07]} 21. Re3 {[%clk 0:02:22]}  cxd4 {[%clk 0:01:07]} 22. cxd4 {[%clk 0:02:22]}  Bd5 {[%clk 0:01:06]} 23. Be4 {[%clk 0:02:18]}  Bxe4 {[%clk 0:01:04]} 24. N2xe4 {[%clk 0:02:19]}  Nc6 {[%clk 0:01:02]} 25. d5 {[%clk 0:02:17]}  Nb4 {[%clk 0:01:01]} 26. Rd1 {[%clk 0:02:16]}  Nxa2 {[%clk 0:00:58]} 27. Nb5 {[%clk 0:02:14]}  Nb4 {[%clk 0:00:53]} 28. Nc7 {[%clk 0:02:12]}  Rac8 {[%clk 0:00:41]} 29. d6 {[%clk 0:02:12]}  Rfd8 {[%clk 0:00:35]} 30. Nc3 {[%clk 0:02:02]}  Rd7 {[%clk 0:00:22]} 31. Ne6 {[%clk 0:01:59]}  Nf6 {[%clk 0:00:19]} 32. Nf4 {[%clk 0:01:56]}  Rcd8 {[%clk 0:00:18]} 33. Re6 {[%clk 0:01:55]}  Kg8 {[%clk 0:00:16]} 34. h4 {[%clk 0:01:18]}  Kf7 {[%clk 0:00:15]} 35. Rde1 {[%clk 0:01:06]}  Rxd6 {[%clk 0:00:13]} 36. Re7+ {[%clk 0:01:06]}  Kg8 {[%clk 0:00:13]} 37. Rxa7 {[%clk 0:01:06]}  R6d7 {[%clk 0:00:03]} 38. Rxd7 {[%clk 0:01:03]}  Rxd7 {[%clk 0:00:04]} 39. h5 {[%clk 0:01:03]}  Rd2 {[%clk 0:00:00]} 40. f3 {[%clk 0:00:59]} 1-0


[Site "https://www.chess.com"]